bitfinex-derivatives/quotes_BNBF0:USTF0_20241225
["timestamp","ask_amount","ask_price","bid_price","bid_amount"]
[1735108887636,0.2610169,704.92,704.0,1.0588028]
[1735108887838,0.2610169,704.91,704.0,1.0588028]
[1735108888043,0.28371611,704.93,703.98,1.0588028]
[1735108888044,0.2610169,704.9,703.98,1.0588028]
[1735108888342,0.2610169,704.89,703.98,1.0588028]
[1735108888546,0.2610169,704.88,703.98,1.0588028]
[1735108888744,0.28371611,704.93,703.98,1.0588028]
[1735108888745,0.2610169,704.87,703.98,1.0588028]
[1735108888939,0.28371611,704.93,703.52,0.77640944]
[1735108888940,0.2610169,704.86,703.95,1.0588028]
[1735108889244,0.28371611,704.93,703.95,1.0588028]
[1735108889245,0.2610169,704.85,703.95,1.0588028]
[1735108889441,0.2610169,704.84,703.95,1.0588028]
[1735108889641,0.2610169,704.83,703.95,1.0588028]
[1735108889844,0.2610169,704.82,703.95,1.0588028]
[1735108890040,0.28371611,704.93,703.95,1.0588028]
[1735108890245,0.26102945,704.92,703.95,1.0588028]
[1735108890439,0.26102945,704.92,703.76,1.0588028]
[1735108890440,0.26102945,704.92,703.94,1.0588028]
[1735108891145,0.26102304,704.91,703.94,1.0588028]
[1735108891347,0.28371611,704.93,703.96,1.0588028]
[1735108892444,0.28371611,704.93,703.86,1.0588028]
[1735108894047,0.28371611,704.93,703.87,1.0588028]
[1735108895654,0.28371611,704.93,703.86,1.0588028]
[1735108896951,0.28371611,704.93,703.87,1.0588028]
[1735108899951,0.28371611,704.93,703.86,1.0588028]
[1735108900947,0.28371611,704.93,703.88,1.0588028]
[1735108901153,0.26101268,704.92,703.88,1.0588028]
[1735108902055,0.26101268,704.92,703.96,1.0588028]
[1735108903258,0.28371611,704.93,703.96,1.0588028]
[1735108904156,0.28371611,704.93,703.81,1.0588028]
[1735108905456,0.28371611,704.93,703.74,1.0588028]
[1735108905660,0.26108258,704.92,703.74,1.0588028]
[1735108906263,0.28372416,704.91,703.74,1.0588028]
[1735108906563,0.28372416,704.91,703.51,0.28428878]
[1735108906564,0.26108258,704.9,703.67,1.0588028]
[1735108906765,0.28373221,704.89,703.67,1.0588028]
[1735108906965,0.26108258,704.88,703.67,1.0588028]
[1735108907267,0.28374026,704.87,703.67,1.0588028]
[1735108907459,0.28374026,704.87,703.63,1.0588028]
[1735108907460,0.26108258,704.86,703.63,1.0588028]
[1735108907764,0.28374831,704.85,703.63,1.0588028]
[1735108907965,0.26108612,704.84,703.63,1.0588028]
[1735108908368,0.28375636,704.83,703.63,1.0588028]
[1735108908562,0.28375636,704.83,703.65,1.0588028]
[1735108909562,0.28375636,704.83,703.64,1.0588028]
[1735108910066,0.26109724,704.82,703.64,1.0588028]
[1735108910267,0.28376441,704.81,703.64,1.0588028]
[1735108910464,0.26109724,704.8,703.64,1.0588028]
[1735108910769,0.2610967,704.79,703.71,1.0588028]
[1735108910962,0.2610967,704.78,703.71,1.0588028]
[1735108911366,0.28378052,704.77,703.71,1.0588028]
[1735108911563,0.2610967,704.76,703.68,1.0588028]
[1735108912164,0.54488125,704.76,703.68,1.0588028]
[1735108912366,0.2610967,704.75,703.68,1.0588028]
[1735108912564,0.2610967,704.75,703.67,1.0588028]
[1735108913471,0.2610967,704.75,703.66,1.0588028]
[1735108914471,0.2610967,704.75,703.65,1.0588028]
[1735108916370,0.26110686,704.74,703.65,1.0588028]
[1735108916576,0.26110686,704.73,703.65,1.0588028]
[1735108916775,0.26110686,704.72,703.65,1.0588028]
[1735108917070,0.26110686,704.71,703.62,1.0588028]
[1735108917276,0.28378455,704.76,703.62,1.0588028]
[1735108917277,0.26110686,704.7,703.62,1.0588028]
[1735108917477,0.26110686,704.69,703.62,1.0588028]
[1735108917671,0.26110686,704.68,703.62,1.0588028]
[1735108917872,0.2611613,704.67,703.62,1.0588028]
[1735108918072,0.2611613,704.66,703.62,1.0588028]
[1735108918271,0.2611613,704.65,703.51,0.28428878]
[1735108918472,0.2611613,704.64,703.51,0.28428878]
[1735108918681,0.2611613,704.63,703.51,0.28428878]
[1735108918876,0.2611613,704.63,703.44,1.0588028]
[1735108918877,0.28378455,704.76,703.44,1.0588028]
[1735108919072,0.26117484,704.75,703.44,1.0588028]
[1735108919473,0.26117484,704.75,703.38,1.0588028]
[1735108919677,0.28378455,704.76,703.38,1.0588028]
[1735108919878,0.26116324,704.75,703.38,1.0588028]
[1735108920574,0.26116324,704.75,703.4,1.0588028]
[1735108921078,0.2837926,704.74,703.4,1.0588028]
[1735108921280,0.2837926,704.74,702.79,2.16172239]
[1735108921281,0.26113341,704.73,703.36,1.0588028]
[1735108923378,0.26113341,704.73,703.33,1.0588028]
[1735108923680,0.26114172,704.72,703.33,1.0588028]
[1735108923875,0.26114172,704.71,703.33,1.0588028]
[1735108924076,0.26114172,704.7,703.33,1.0588028]
[1735108924280,0.26113817,704.69,703.33,1.0588028]
[1735108924482,0.2837926,704.74,703.32,1.0588028]
[1735108924675,0.26113633,704.73,703.32,1.0588028]
[1735108925376,0.26113633,704.73,702.59,2.16172239]
[1735108925377,0.26113633,704.73,703.3,1.0588028]
[1735108925574,0.2837926,704.74,703.3,1.0588028]
[1735108925776,0.26114114,704.73,703.3,1.0588028]
[1735108926174,0.26114114,704.73,703.31,1.0588028]
[1735108927078,0.26114114,704.73,703.3,1.0588028]
[1735108928386,0.28380065,704.72,703.28,1.0588028]
[1735108928782,0.26114383,704.71,703.28,1.0588028]
[1735108928983,0.28380871,704.7,703.28,1.0588028]
[1735108929284,0.28380871,704.7,703.3,1.0588028]
[1735108929285,0.26114383,704.69,703.3,1.0588028]
[1735108929479,0.28380871,704.7,703.3,1.0588028]
[1735108929684,0.26113386,704.69,703.3,1.0588028]
[1735108929986,0.28380871,704.7,703.3,1.0588028]
[1735108930381,0.28380871,704.7,703.33,1.0588028]
[1735108931685,0.28380871,704.7,703.34,1.0588028]
[1735108932781,0.28380871,704.7,703.28,1.0588028]
[1735108933888,0.28380871,704.7,703.36,1.0588028]
[1735108934880,0.28380871,704.7,703.4,1.0588028]
[1735108935885,0.28380871,704.7,703.44,1.0588028]
[1735108936886,0.28380871,704.7,703.14,1.0588028]
[1735108937987,0.28380871,704.7,703.2,1.0588028]
[1735108938988,0.28380871,704.7,703.22,1.0588028]
[1735108939883,0.28380871,704.7,703.25,1.0588028]
[1735108940482,0.28380871,704.7,703.26,0.28438984]
[1735108940687,0.28380871,704.7,703.27,1.0588028]
[1735108942789,0.28380871,704.7,703.28,1.0588028]
[1735108943990,0.28380871,704.7,703.74,1.0588028]
[1735108945290,0.28380871,704.7,703.75,1.0588028]
[1735108946291,0.28380871,704.7,703.74,1.0588028]
[1735108947289,0.28380871,704.7,703.72,1.0588028]
[1735108948397,0.28380871,704.7,703.69,1.0588028]
[1735108949496,0.28380871,704.7,703.68,1.0588028]
[1735108950297,0.28380871,704.7,703.66,1.0588028]
[1735108951497,0.28380871,704.7,703.4,1.0588028]
[1735108951498,0.28380871,704.7,703.63,1.0588028]
[1735108952494,0.28380871,704.7,703.61,1.0588028]
[1735108953400,0.28380871,704.7,703.65,1.0588028]
[1735108954194,0.28380871,704.7,703.62,1.0588028]
[1735108955505,0.28380871,704.7,703.5,1.0588028]
[1735108956503,0.28380871,704.7,703.52,1.0588028]
[1735108957105,0.28380871,704.7,703.53,1.0588028]
[1735108958000,0.28380871,704.7,703.55,1.0588028]
[1735108958903,0.28380871,704.7,703.57,1.0588028]
[1735108959907,0.28380871,704.7,703.58,1.0588028]
[1735108961106,0.28380871,704.7,703.62,1.0588028]
[1735108962406,0.28380871,704.7,703.73,1.0588028]
[1735108963311,0.28380871,704.7,703.68,1.0588028]
[1735108964305,0.28380871,704.7,703.7,1.0588028]
[1735108965208,0.28380871,704.7,703.71,1.0588028]
[1735108967816,0.28380871,704.7,703.72,1.0588028]
[1735108968909,0.28380871,704.7,703.27,0.776221]
[1735108968910,0.28380871,704.7,703.77,1.0588028]
[1735108970019,0.28380871,704.7,703.79,1.0588028]
[1735108970819,0.28380871,704.7,703.77,1.0588028]
[1735108971716,0.28380871,704.7,703.81,1.0588028]
[1735108972821,0.28380871,704.7,703.8,1.0588028]
[1735108973614,0.28380871,704.7,703.83,1.0588028]
[1735108974614,0.28380871,704.7,703.84,1.0588028]
[1735108975720,1.06079519,705.69,703.9,1.0588028]
[1735108975920,0.28341859,705.67,703.9,1.0588028]
[1735108976116,0.26097097,705.66,703.9,1.0588028]
[1735108976321,0.28343064,705.64,703.9,1.0588028]
[1735108976517,0.26097097,705.63,703.9,1.0588028]
[1735108976719,0.28344269,705.61,703.9,1.0588028]
[1735108976916,0.26097097,705.6,703.9,1.0588028]
[1735108977114,0.64303172,705.89,703.3,2.04678436]
[1735108977115,0.28345474,705.58,703.89,1.0588028]
[1735108977419,0.26097063,705.57,703.89,1.0588028]
[1735108978022,0.26096267,705.56,703.89,1.0588028]
[1735108978221,0.26096267,705.55,703.89,1.0588028]
[1735108978519,0.28347483,705.53,703.89,1.0588028]
[1735108978723,0.26096267,705.52,703.89,1.0588028]
[1735108978924,0.26096267,705.52,703.92,1.0588028]
[1735108979224,0.28348688,705.5,703.92,1.0588028]
[1735108979427,0.2609546,705.49,703.92,1.0588028]
[1735108979824,0.28349894,705.47,703.92,1.0588028]
[1735108980019,0.28349894,705.47,703.3,0.776221]
[1735108980020,0.2609546,705.46,703.94,1.0588028]
[1735108980524,0.283511,705.44,703.94,1.0588028]
[1735108980718,0.2609546,705.43,703.94,1.0588028]
[1735108981121,0.28351903,705.42,703.94,1.0588028]
[1735108981321,0.2609546,705.41,704.05,1.0588028]
[1735108982325,0.2609546,705.41,704.0,1.0588028]
[1735108983324,0.28352707,705.4,704.0,1.0588028]
[1735108983529,0.2609546,705.39,704.0,1.0588028]
[1735108983725,0.2609546,705.39,703.98,1.0588028]
[1735108984830,0.26092459,705.38,703.98,1.0588028]
[1735108985129,0.26092459,705.37,703.95,1.0588028]
[1735108985331,0.26092459,705.36,703.95,1.0588028]
[1735108985527,0.26092459,705.35,703.95,1.0588028]
[1735108985723,0.26092459,705.34,703.95,1.0588028]
[1735108985924,0.26092459,705.33,703.95,1.0588028]
[1735108986125,0.26092459,705.32,703.93,1.0588028]
[1735108986326,0.26092459,705.31,703.93,1.0588028]
[1735108986628,0.26092459,705.3,703.93,1.0588028]
[1735108986826,0.26091512,705.29,703.93,1.0588028]
[1735108987023,0.26091512,705.28,703.93,1.0588028]
[1735108987226,0.26091512,705.27,703.93,1.0588028]
[1735108987428,0.26091512,705.27,703.29,0.28437771]
[1735108987429,0.26091512,705.26,703.95,1.0588028]
[1735108987625,0.26091512,705.25,703.95,1.0588028]
[1735108987829,0.28352707,705.4,703.95,1.0588028]
[1735108988025,0.26090965,705.39,703.95,1.0588028]
[1735108989730,0.26090965,705.39,703.71,1.0588028]
[1735108989731,0.26090965,705.39,703.92,1.0588028]
[1735108990128,0.28353511,705.38,703.92,1.0588028]
[1735108990332,0.26090965,705.37,703.92,1.0588028]
[1735108990529,0.26090965,705.37,703.93,1.0588028]
[1735108990732,0.28354315,705.36,703.93,1.0588028]
[1735108990932,0.26090965,705.35,703.93,1.0588028]
[1735108991734,0.28355119,705.34,703.99,1.0588028]
[1735108992032,0.26090965,705.33,703.99,1.0588028]
[1735108992333,0.28355923,705.32,703.99,1.0588028]
[1735108992533,0.26090965,705.31,703.97,1.0588028]
[1735108992834,0.28356727,705.3,703.97,1.0588028]
[1735108993035,0.26090965,705.29,703.97,1.0588028]
[1735108993235,0.28357531,705.28,703.97,1.0588028]
[1735108993435,0.26090965,705.27,703.97,1.0588028]
[1735108994932,0.28358335,705.26,703.99,1.0588028]
[1735108995130,0.26090965,705.25,703.99,1.0588028]
[1735108996035,0.2835914,705.24,704.03,1.0588028]
[1735108996236,0.26090965,705.23,704.03,1.0588028]
[1735108996440,0.28359944,705.22,704.03,1.0588028]
[1735108996639,0.26090965,705.21,704.03,1.0588028]
[1735108996841,0.26090965,705.21,704.05,1.0588028]
[1735108997936,0.26092405,705.2,704.05,1.0588028]
[1735108998136,0.26092405,705.19,704.07,1.0588028]
[1735108998342,0.26092405,705.18,704.07,1.0588028]
[1735108998541,0.26092405,705.17,704.07,1.0588028]
[1735108998740,0.28359944,705.22,704.07,1.0588028]
[1735108998943,0.2609293,705.21,704.06,1.0588028]
[1735108999144,0.54453276,705.21,704.06,1.0588028]
[1735108999345,0.2609293,705.2,704.06,1.0588028]
[1735109000050,0.2609293,705.2,704.07,1.0588028]
[1735109001340,0.2609293,705.2,704.08,1.0588028]
[1735109001541,0.28360346,705.21,704.08,1.0588028]
[1735109001747,0.26094762,705.2,704.08,1.0588028]
[1735109002246,0.26094762,705.2,703.98,1.0588028]
[1735109003546,0.26095717,705.19,703.97,1.0588028]
[1735109003748,0.26095717,705.18,703.97,1.0588028]
[1735109003947,0.28361955,705.17,703.97,1.0588028]
[1735109005949,0.28361955,705.17,704.02,1.0588028]
[1735109008051,0.26095651,705.16,704.02,1.0588028]
[1735109008249,0.26095651,705.16,704.04,1.0588028]
[1735109008943,0.26096515,705.15,704.11,1.0588028]
[1735109009249,0.26096515,705.14,704.11,1.0588028]
[1735109009544,0.26096515,705.13,704.11,1.0588028]
[1735109009747,0.26096649,705.12,704.11,1.0588028]
[1735109009945,0.26096649,705.11,704.11,1.0588028]
[1735109010147,0.26096649,705.1,704.11,1.0588028]
[1735109010348,0.26096649,705.09,704.14,1.0588028]
[1735109010548,0.26096649,705.08,704.14,1.0588028]
[1735109010749,0.26096649,705.16,704.14,1.0588028]
[1735109010949,0.26096649,705.15,704.14,1.0588028]
[1735109011150,0.26096649,705.14,704.14,1.0588028]
[1735109011349,0.26096649,705.13,704.14,1.0588028]
[1735109011552,0.26096649,705.12,704.16,1.0588028]
[1735109011746,0.26096649,705.11,704.16,1.0588028]
[1735109011945,0.26096649,705.1,704.16,1.0588028]
[1735109012145,0.26096649,705.09,704.16,1.0588028]
[1735109012452,0.26096649,705.08,704.18,1.0588028]
[1735109012752,0.28361955,705.17,704.18,1.0588028]
[1735109012951,0.26092771,705.16,704.18,1.0588028]
[1735109013456,0.26092771,705.16,704.23,1.0588028]
[1735109013645,0.28361955,705.17,704.23,1.0588028]
[1735109014654,0.28361955,705.17,704.25,1.0588028]
[1735109015949,0.28361955,705.17,704.26,1.0588028]
[1735109016652,0.28361955,705.17,704.25,1.0588028]
[1735109017852,0.28361955,705.17,704.26,1.0588028]
[1735109019153,0.28361955,705.17,704.23,1.0588028]
[1735109021153,0.28361955,705.17,704.22,1.0588028]
[1735109023453,0.28361955,705.17,704.23,1.0588028]
[1735109024454,0.28361955,705.17,704.24,1.0588028]
[1735109025355,0.28361955,705.17,704.25,1.0588028]
[1735109026255,0.28361955,705.17,704.31,1.0588028]
[1735109027252,0.28361955,705.17,704.28,1.0588028]
[1735109029557,0.28361955,705.17,704.27,1.0588028]
[1735109033354,0.28361955,705.17,704.26,1.0588028]
[1735109034455,0.28361955,705.17,704.2,1.0588028]
[1735109036260,0.28361955,705.17,704.21,1.0588028]
[1735109038065,0.28361955,705.17,704.22,1.0588028]
[1735109039064,0.28361955,705.17,704.21,1.0588028]
[1735109040265,0.28361955,705.17,704.22,1.0588028]
[1735109041362,0.28361955,705.17,704.23,1.0588028]
[1735109043269,0.28361955,705.17,704.24,1.0588028]
[1735109044165,0.28361955,705.17,703.74,2.04678436]
[1735109044166,0.28361955,705.17,704.32,1.0588028]
[1735109045168,0.2608974,705.16,704.35,1.0588028]
[1735109045561,0.28361955,705.17,704.35,1.0588028]
[1735109045765,0.26090202,705.16,704.35,1.0588028]
[1735109046163,0.26090202,705.16,704.34,1.0588028]
[1735109046869,0.28361955,705.17,704.34,1.0588028]
[1735109047272,0.28361955,705.17,704.25,1.0588028]
[1735109048064,0.28361955,705.17,704.27,1.0588028]
[1735109049166,0.28361955,705.17,704.23,1.0588028]
[1735109050072,0.28361955,705.17,704.25,1.0588028]
[1735109051975,0.28361955,705.17,704.24,1.0588028]
[1735109052883,0.28361955,705.17,704.3,1.0588028]
[1735109053777,0.26091998,705.16,704.3,1.0588028]
[1735109053981,0.26091998,705.16,704.29,1.0588028]
[1735109054879,0.26091998,705.16,704.3,1.0588028]
[1735109056280,0.26091998,705.16,704.29,1.0588028]
[1735109056781,0.28361955,705.17,704.29,1.0588028]
[1735109057585,0.28361955,705.17,704.28,1.0588028]
[1735109058682,0.28361955,705.17,704.24,1.0588028]
[1735109060587,0.28361955,705.17,704.09,1.0588028]
[1735109064591,0.28361955,705.17,704.1,1.0588028]
[1735109065991,0.28361955,705.17,704.08,1.0588028]
[1735109069796,0.28361955,705.17,704.2,1.0588028]
[1735109070793,0.28361955,705.17,704.19,1.0588028]
[1735109072095,0.28361955,705.17,704.21,1.0588028]
[1735109073201,0.28361955,705.17,704.31,1.0588028]
[1735109073600,0.28361955,705.17,704.3,1.0588028]
[1735109074796,0.28361955,705.17,704.26,1.0588028]
[1735109075902,0.28361955,705.17,703.78,0.28417971]
[1735109075903,0.28361955,705.17,704.28,1.0588028]
[1735109076902,0.28361955,705.17,704.26,1.0588028]
[1735109077703,0.28361955,705.17,704.21,1.0588028]
[1735109079599,0.28361955,705.17,704.18,1.0588028]
[1735109082702,0.28361955,705.17,703.79,0.77747448]
[1735109082703,0.28361955,705.17,704.15,1.0588028]
[1735109084509,0.28361955,705.17,704.16,1.0588028]
[1735109085609,0.28361955,705.17,704.15,1.0588028]
[1735109086606,0.28361955,705.17,703.79,0.77747448]
[1735109086607,0.28361955,705.17,704.16,1.0588028]
[1735109087706,0.28361955,705.17,703.8,0.28417163]
[1735109087707,0.28361955,705.17,704.19,1.0588028]
[1735109089811,0.28361955,705.17,704.23,1.0588028]
[1735109092606,0.28361955,705.17,704.27,1.0588028]
[1735109093411,0.28361955,705.17,704.28,1.0588028]
[1735109095507,0.28361955,705.17,704.3,1.0588028]
[1735109098315,0.28361955,705.17,703.83,0.77747448]
[1735109098316,0.28361955,705.17,704.33,1.0588028]
[1735109099407,0.28361955,705.17,704.31,1.0588028]
[1735109100217,0.28361955,705.17,704.29,1.0588028]
[1735109100711,0.26090387,705.16,704.29,1.0588028]
[1735109101312,0.28361955,705.17,704.29,1.0588028]
[1735109101716,0.28361955,705.17,704.33,1.0588028]
[1735109102517,0.28361955,705.17,704.28,1.0588028]
[1735109103812,0.28361955,705.17,704.25,1.0588028]
[1735109104415,0.28361955,705.17,704.26,1.0588028]
[1735109106316,0.28361955,705.17,703.83,0.77747448]
[1735109106317,0.28361955,705.17,704.25,1.0588028]
[1735109107313,0.28361955,705.17,704.23,1.0588028]
[1735109108421,0.28361955,705.17,704.24,1.0588028]
[1735109109319,0.28361955,705.17,704.23,1.0588028]
[1735109110421,0.28361955,705.17,704.26,1.0588028]
[1735109111419,0.28361955,705.17,704.25,1.0588028]
[1735109113415,0.28361955,705.17,703.91,1.0588028]
[1735109114621,0.28361955,705.17,703.88,1.0588028]
[1735109115619,0.28361955,705.17,703.87,1.0588028]
[1735109116520,0.28361955,705.17,703.82,0.28416356]
[1735109118019,0.28361955,705.17,703.58,1.0588028]
[1735109118419,0.28361955,705.17,703.35,1.0588028]
[1735109119221,0.26109148,705.16,703.35,1.0588028]
[1735109119625,0.26109148,705.16,703.21,1.0588028]
[1735109120320,0.26111343,705.15,703.22,0.28440601]
[1735109120522,0.26113728,705.16,703.22,0.28440601]
[1735109120819,0.26113728,705.15,703.22,0.28440601]
[1735109121019,0.26113728,705.14,703.22,0.28440601]
[1735109121214,0.26113728,705.13,703.22,0.28440601]
[1735109121414,0.26113728,705.12,703.22,0.28440601]
[1735109121619,0.26113728,705.11,703.22,0.28440601]
[1735109121916,0.26113728,705.1,703.22,0.28440601]
[1735109122122,0.26113728,705.09,703.22,0.28440601]
[1735109122314,0.26113728,705.08,703.22,0.28440601]
[1735109122517,0.26113728,705.07,703.22,0.28440601]
[1735109122821,0.26113728,705.06,703.22,0.28440601]
[1735109123024,0.26113728,705.05,703.22,0.28440601]
[1735109123222,0.26113728,705.04,703.22,0.28440601]
[1735109123422,0.26113728,705.03,703.22,0.28440601]
[1735109123623,0.26113728,705.02,703.22,0.28440601]
[1735109123922,0.26113728,705.01,703.22,0.28440601]
[1735109124222,0.26113728,705.0,703.22,0.28440601]
[1735109124424,0.26113728,704.99,703.22,0.28440601]
[1735109124624,0.26120211,704.98,703.22,0.28440601]
[1735109124920,0.26120211,704.97,703.22,0.27361198]
[1735109125225,0.26120211,704.96,703.22,0.27361198]
[1735109125525,0.26120211,704.95,703.22,0.27361198]
[1735109125724,0.26120211,704.94,703.22,0.27361198]
[1735109125924,0.26120211,704.93,703.22,0.27361198]
[1735109126129,0.26120211,704.92,703.22,0.27361198]
[1735109126425,0.26120211,704.91,703.22,0.27361198]
[1735109126625,0.26120211,704.9,703.22,0.27361198]
[1735109126821,0.26120211,705.16,703.22,0.27361198]
[1735109127119,0.26120211,705.15,703.22,0.27361198]
[1735109127324,0.28361955,705.17,703.22,0.27361198]
[1735109127325,0.26120211,705.14,703.22,0.27361198]
[1735109127526,0.2612444,705.13,703.22,0.27361198]
[1735109127718,0.2612444,705.12,703.22,0.27361198]
[1735109128021,0.2612444,705.11,703.22,0.27361198]
[1735109128218,0.2612444,705.1,703.22,0.27361198]
[1735109128422,0.28361955,705.17,703.22,0.27361198]
[1735109128423,0.2612444,705.09,703.22,0.27361198]
[1735109128622,0.28361955,705.17,703.22,0.27361198]
[1735109128623,0.2612444,705.08,703.22,0.27361198]
[1735109128825,0.2612444,705.07,703.22,0.27361198]
[1735109129019,0.28361955,705.17,703.22,0.27361198]
[1735109129020,0.2612444,705.06,703.22,0.27361198]
[1735109129222,0.2612444,705.05,702.06,1.0588028]
[1735109129424,0.2612444,705.04,702.19,0.28482319]
[1735109129619,0.2612444,705.03,702.19,0.28482319]
[1735109129819,0.2612444,705.02,702.19,0.28482319]
[1735109130022,0.2612444,705.01,702.19,0.28482319]
[1735109130228,0.28361955,705.17,702.19,0.28482319]
[1735109130426,0.26130453,705.16,702.19,0.28482319]
[1735109133026,0.26136929,705.15,702.19,0.28482319]
[1735109133221,0.26136929,705.14,702.19,0.28482319]
[1735109133422,0.26136929,705.13,702.19,0.28482319]
[1735109133723,0.26136929,705.12,702.19,0.28482319]
[1735109133925,0.28361955,705.17,702.19,0.28482319]
[1735109133926,0.26135331,705.11,702.19,0.28482319]
[1735109134126,0.26135331,705.1,702.19,0.28482319]
[1735109134327,0.28370403,704.96,702.19,0.28482319]
[1735109134527,0.26135331,704.95,702.19,0.28482319]
[1735109134723,0.26135331,704.94,702.19,0.28482319]
[1735109134924,0.28376441,704.81,702.19,0.28482319]
[1735109135129,0.26135331,704.8,702.19,0.28482319]
[1735109135330,0.26135331,704.79,702.19,0.28482319]
[1735109135531,0.26135331,704.78,702.19,0.28482319]
[1735109135730,0.26135331,704.77,702.19,0.28482319]
[1735109135928,0.28376441,704.81,702.19,0.28482319]
[1735109135929,0.26131083,704.76,702.19,0.28482319]
[1735109136128,0.28382885,704.65,702.19,0.28482319]
[1735109136332,0.26131083,704.64,702.19,0.28482319]
[1735109136930,0.28384093,704.62,702.19,0.28482319]
[1735109137130,0.26131083,704.61,702.19,0.28482319]
[1735109139431,0.26131083,704.6,702.19,0.28482319]
[1735109139633,0.26131083,704.59,702.19,0.28482319]
[1735109139831,0.26131083,704.58,702.19,0.28482319]
[1735109140036,0.26131083,704.57,702.19,0.28482319]
[1735109140236,0.26131083,704.56,702.19,0.28482319]
[1735109140531,0.26131083,704.55,702.19,0.28482319]
[1735109140736,0.26131083,704.54,702.19,0.28482319]
[1735109140930,0.26131083,704.53,702.19,0.28482319]
[1735109141135,0.26131083,704.52,702.19,0.28482319]
[1735109141332,0.28384093,704.62,702.19,0.28482319]
[1735109141637,0.2614528,704.61,702.19,0.28482319]
[1735109141840,0.2614528,704.6,702.19,0.28482319]
[1735109142038,0.2614528,704.59,702.19,0.28482319]
[1735109142238,0.26143044,704.58,702.19,0.28482319]
[1735109142437,0.26143044,704.57,702.19,0.28482319]
[1735109142637,0.26143044,704.56,702.19,0.28482319]
[1735109142834,0.26143044,704.55,702.19,0.28482319]
[1735109143034,0.26143044,704.54,702.19,0.28482319]
[1735109143235,0.28384093,704.62,702.19,0.28482319]
[1735109143236,0.26143044,704.53,702.19,0.28482319]
[1735109143440,0.26143044,704.52,702.19,0.28482319]
[1735109143640,0.26143044,704.51,702.19,0.28482319]
[1735109143839,0.26143044,704.5,702.19,0.28482319]
[1735109144035,0.26143044,704.49,702.19,0.28482319]
[1735109144241,0.28384093,704.62,702.19,0.28482319]
[1735109144242,0.26143044,704.61,702.19,0.28482319]
[1735109144536,0.26143044,704.6,702.19,0.28482319]
[1735109144739,0.26143044,704.59,702.19,0.28482319]
[1735109144941,0.26143044,704.58,702.19,0.28482319]
[1735109145136,0.26143044,704.57,702.19,0.28482319]
[1735109145342,0.26143044,704.56,702.19,0.28482319]
[1735109145538,0.26143044,704.55,702.19,0.28482319]
[1735109145842,0.26143044,704.54,702.19,0.28482319]
[1735109146043,0.26143044,704.53,702.19,0.28482319]
[1735109146238,0.26143044,704.52,702.19,0.28482319]
[1735109146441,0.26143044,704.51,702.19,0.28482319]
[1735109146637,0.26143044,704.5,702.19,0.28482319]
[1735109146839,0.26143044,704.49,702.19,0.28482319]
[1735109147048,0.26147466,704.48,702.19,0.28482319]
[1735109147343,0.26147466,704.47,702.19,0.28482319]
[1735109147540,0.28384093,704.62,702.19,0.28482319]
[1735109147541,0.26147466,704.46,702.19,0.28482319]
[1735109147736,0.26147466,704.45,702.19,0.28482319]
[1735109147938,0.26147466,704.44,702.19,0.28482319]
[1735109148242,0.28395377,704.34,702.19,0.28482319]
[1735109148444,0.26147466,704.33,702.19,0.28482319]
[1735109148642,0.26147466,704.32,702.19,0.28482319]
[1735109148942,0.26147466,704.31,702.19,0.28482319]
[1735109149141,0.26147466,704.3,702.19,0.28482319]
[1735109149337,0.26147466,704.29,702.19,0.28482319]
[1735109149538,0.26147466,704.28,702.19,0.28482319]
[1735109149745,0.26136697,704.27,702.19,0.28482319]
[1735109149937,0.26136697,704.26,702.19,0.28482319]
[1735109150142,0.26136697,704.25,702.19,0.28482319]
[1735109150342,0.26136697,704.24,702.19,0.28482319]
[1735109150540,0.26136697,704.23,702.19,0.28482319]
[1735109150841,0.26136697,704.22,702.19,0.28482319]
[1735109151041,0.26136697,704.21,702.19,0.28482319]
[1735109151239,0.26136697,704.2,702.19,0.28482319]
[1735109151441,0.28395377,704.34,702.19,0.28482319]
[1735109151442,0.26136697,704.19,702.19,0.28482319]
[1735109151744,0.26136697,704.18,702.19,0.28482319]
[1735109151942,0.26136697,704.17,702.19,0.28482319]
[1735109152143,0.26136697,704.16,702.19,0.28482319]
[1735109152343,0.26136697,704.15,702.19,0.28482319]
[1735109152538,0.28395377,704.34,702.19,0.28482319]
[1735109152539,0.28395377,704.34,702.32,1.0588028]
[1735109152744,0.26131236,704.33,702.32,1.0588028]
[1735109154744,0.26131236,704.33,702.19,0.28482319]
[1735109154745,0.26131236,704.33,702.39,1.0588028]
[1735109155339,0.26132661,704.32,702.39,1.0588028]
[1735109155543,0.28395377,704.34,702.19,0.28482319]
[1735109155544,0.26132661,704.31,702.46,1.0588028]
[1735109155744,0.26132661,704.3,702.46,1.0588028]
[1735109155941,0.26132661,704.29,702.46,1.0588028]
[1735109156143,0.26132661,704.28,702.46,1.0588028]
[1735109156343,0.28395377,704.34,702.46,1.0588028]
[1735109156344,0.26132661,704.27,702.46,1.0588028]
[1735109156542,0.26132661,704.26,702.48,0.28470561]
[1735109156747,0.54531667,704.25,702.48,0.28470561]
[1735109156947,0.26132661,704.24,702.48,0.28470561]
[1735109157347,0.28399812,704.23,702.48,0.28470561]
[1735109157547,0.26132661,704.22,702.48,0.28470561]
[1735109157847,0.26132661,704.22,702.52,1.0588028]